fUSD/lending_fUSD_20260205
["ID","MTS","AMOUNT","RATE_DAILY","PERIOD"]
[404599452,1770324665269,-326.205143,0.00039726,90]
[404599453,1770324665278,-326.205136,0.00039726,90]
[404599454,1770324665288,-232.459602,0.00039726,120]
[404599455,1770324665298,-166.523054,0.00039726,120]
[404599456,1770324665307,-151.0,0.00039726,120]
[404599457,1770324665316,-236.619223,0.00039726,120]
[404599458,1770324665331,-151.0,0.00039726,120]
[404599459,1770324665340,-151.0,0.00039726,120]
[404599460,1770324665350,-192.995873,0.00039726,120]
[404599461,1770324665360,-176.976095,0.00039726,120]
[404599462,1770324665370,-151.0,0.00039726,60]
[404599463,1770324665379,-151.0,0.00039726,60]
[404599464,1770324665389,-151.0,0.00039726,60]
[404599465,1770324665399,-150.0,0.00039733,7]
[404599466,1770324665408,-150.0,0.00039747,7]
[404599467,1770324665418,-150.0,0.00039759,7]
[404599468,1770324665427,-150.0,0.00039763,7]
[404599469,1770324665437,-150.0,0.00039768,7]
[404599470,1770324665447,-150.0,0.00039784,7]
[404599471,1770324665457,-150.0,0.00039803,7]
[404599472,1770324665466,-150.0,0.00039808,7]
[404599473,1770324665476,-150.0,0.00039809,7]
[404599474,1770324665486,-150.0,0.00039809,7]
[404599475,1770324665495,-150.0,0.00039813,7]
[404599476,1770324665505,-150.0,0.00039848,7]
[404599477,1770324665514,-616.0,0.00039852,2]
[404599478,1770324665524,-1271.0,0.00039852,2]
[404599479,1770324665534,-412.0,0.00039852,2]
[404599480,1770324665543,-2446.0,0.00039852,2]
[404599481,1770324665552,-150.0,0.00039859,7]
[404599482,1770324665562,-500.0,0.00039863,30]
[404599483,1770324665571,-500.0,0.00039863,30]
[404599484,1770324665587,-150.0,0.00039866,7]
[404599485,1770324665596,-176.0,0.00039871,90]
[404599486,1770324665606,-150.0,0.00039876,7]
[404599487,1770324665615,-150.0,0.00039876,7]
[404599488,1770324665624,-150.0,0.00039882,7]
[404599489,1770324665634,-393.16577,0.00039888,30]
[404599490,1770324665643,-150.0,0.00039897,7]
[404599491,1770324665652,-960.65393927,0.000399,2]
[404599492,1770324665662,-150.0,0.00039909,7]
[404599493,1770324665671,-150.0,0.00039909,7]
[404599494,1770324665680,-3658.34,0.00039926,2]
[404599495,1770324665689,-150.0,0.00039932,7]
[404599496,1770324665699,-506.0,0.00039945,22]
[404599497,1770324665707,-150.0,0.00039956,7]
[404599498,1770324665717,-150.0,0.00039959,7]
[404599499,1770324665727,-150.0,0.00039964,7]
[404599500,1770324665736,-150.0,0.00039967,7]
[404599501,1770324665749,-80947.35911356,0.0003998,2]
[404599502,1770324665758,-150.0,0.00039985,7]
[404599503,1770324665768,-50000.0,0.0004,39]
[404599504,1770324665777,-2850.98104369,0.0004,31]
[404599505,1770324665786,-5000.0,0.0004,3]
[404599506,1770324665795,-389.79412918,0.0004,2]
[404599507,1770324665804,-1557.7587917,0.0004,2]
[404599508,1770324665814,-218.46144788,0.0004,2]
[404599509,1770324665822,-314.34727269,0.0004,2]
[404599510,1770324665838,-161.41319739,0.0004,2]
[404599511,1770324665847,-10669.68703427,0.0004,2]
[404599512,1770324665856,-5012.24259772,0.0004,2]
[404599513,1770324665866,-316.0,0.0004,2]
[404599514,1770324665875,-100000.0,0.0004,7]
[404599515,1770324665884,-100000.0,0.0004,7]
[404599516,1770324665894,-807.09733058,0.0004,3]
[404599517,1770324665903,-3231.56767757,0.0004,120]
[404599518,1770324665912,-159.16272064,0.0004,120]
[404599519,1770324665922,-156.05076419,0.0004,60]
[404599520,1770324665931,-10395.59784,0.0004,2]
[404599521,1770324665941,-28391.0,0.0004,120]
[404599522,1770324665951,-12379.27394062,0.0004,120]
[404599523,1770324665961,-250.0,0.0004,45]
[404599524,1770324665970,-153.0,0.0004,120]
[404599525,1770324665980,-250.0,0.0004,45]
[404599526,1770324665990,-250.0,0.0004,45]
[404599527,1770324665999,-153.0,0.0004,120]
[404599528,1770324666008,-250.0,0.0004,45]
[404599529,1770324666018,-250.0,0.0004,45]
[404599530,1770324666027,-174.30727018,0.0004,120]
[404599531,1770324666036,-299.86233314,0.0004,120]
[404599532,1770324666046,-187.81520179,0.0004,30]
[404599533,1770324666055,-177.94522779,0.0004,120]
[404599534,1770324666065,-330.96641992,0.0004,30]
[404599535,1770324666077,-507.08810634,0.0004,120]
[404599536,1770324666088,-96400.0,0.0004,40]
[404599537,1770324666097,-6017.26083589,0.0004,7]
[404599538,1770324666582,-339.75260614,0.0004,7]
[404599539,1770324666594,-276.65889505,0.0004,7]
[404599540,1770324666605,-3148.57581231,0.0004,7]
[404599541,1770324666616,-867.29465335,0.0004,7]
[404599542,1770324666630,-1850.0,0.0004,7]
[404599543,1770324667572,-677.845301,0.00032877,31]
[404599544,1770324667593,-677.845301,0.00032877,31]
[404599545,1770324667603,-575.76687154,0.00032877,31]
[404599546,1770324667615,-102.07842946,0.00032877,31]
[404599547,1770324667625,-537.39657054,0.00032877,31]
[404599548,1770324667636,-140.44873046,0.00032877,31]
[404599549,1770324667646,-677.845301,0.00032877,31]
[404599550,1770324667656,-677.845301,0.00032877,31]
[404599551,1770324667665,-677.845301,0.00032877,31]
[404599552,1770324667675,-677.845301,0.00032877,31]
[404599553,1770324667685,-677.845301,0.00032877,31]
[404599554,1770324667695,-470.32476454,0.00032877,31]
[404599555,1770324667708,-207.52053646,0.00032877,31]
[404599556,1770324667718,-300.0,0.00039636,2]
[404599557,1770324667731,-300.0,0.00039636,2]
[404599558,1770324667740,-151.0,0.00039726,120]
[404599559,1770324667750,-151.0,0.00039726,120]
[404599560,1770324667759,-151.0,0.00039726,120]
[404599561,1770324667769,-135.77966354,0.00039726,120]
[404599562,1770324667781,-15.22033646,0.00039726,120]
[404599563,1770324667791,-155.487693,0.00039726,120]
[404599564,1770324667801,-224.058695,0.00039726,120]
[404599565,1770324667811,-209.76506805,0.00039726,2]
[404599566,1770324667825,-157.99684195,0.00039726,2]
[404599567,1770324667842,-367.76191,0.00039726,2]
[404599568,1770324667851,-112.97124805,0.00039726,2]
[404599569,1770324667867,-254.79066195,0.00039726,2]
[404599570,1770324667876,-367.76191,0.00039726,2]
[404599571,1770324667886,-367.76191,0.00039726,2]
[404599572,1770324667895,-367.76191,0.00039726,2]
[404599573,1770324667905,-367.76191,0.00039726,2]
[404599574,1770324667914,-367.76191,0.00039726,2]
[404599575,1770324667924,-367.76191,0.00039726,2]
[404599576,1770324667933,-367.76191,0.00039726,2]
[404599577,1770324667943,-367.76191,0.00039726,2]
[404599578,1770324667952,-367.76191,0.00039726,2]
[404599579,1770324667962,-367.76191,0.00039726,2]
[404599580,1770324667971,-367.76191,0.00039726,2]
[404599581,1770324667981,-2036.02832805,0.0004,7]
[404599582,1770324667994,-581.1401268,0.0004,7]
[404599583,1770324668005,-637.74195,0.0004,7]
[404599584,1770324668021,-1642.79656371,0.0004,7]
[404599585,1770324668031,-4021.0,0.0004,20]
[404599586,1770324668041,-400.0,0.0004,120]
[404599587,1770324668051,-4102.47440485,0.0004,2]
[404599588,1770324668061,-402.3881038,0.0004,7]
[404599589,1770324668071,-1747.24,0.0004,120]
[404599590,1770324668088,-250.0,0.0004,7]
[404599591,1770324668100,-47816.90198349,0.0004,120]
[404599592,1770324668112,-1846.9,0.0004,120]
[404599593,1770324668124,-1273.32,0.0004,120]
[404599594,1770324668136,-18680.0,0.0004,120]
[404599595,1770324668575,-756.90565038,0.00021852,2]
[404599596,1770324668594,-2497.09434962,0.00021852,2]
[404599597,1770324668604,-3254.0,0.00024852,2]
[404599598,1770324668614,-677.845301,0.00032877,31]
[404599599,1770324668624,-677.845301,0.00032877,31]
[404599600,1770324668633,-677.845301,0.00032877,31]
[404599601,1770324668643,-677.845301,0.00032877,31]
[404599602,1770324668654,-677.845301,0.00032877,31]
[404599603,1770324668664,-677.845301,0.00032877,31]
[404599604,1770324668674,-457.00989845,0.00039636,2]
[404599605,1770324668685,-367.76191,0.00039726,2]
[404599606,1770324668695,-367.76191,0.00039726,2]
[404599607,1770324668705,-367.76191,0.00039726,2]
[404599608,1770324668715,-367.76191,0.00039726,2]
[404599609,1770324668727,-367.76191,0.00039726,2]
[404599610,1770324668737,-367.761905,0.00039726,2]
[404599611,1770324668747,-646527.42582009,0.0004,120]
[404599612,1770324668758,-4177.82134233,0.0004,120]
[404599613,1770324668767,-99818.95516192,0.0004,120]
[404599614,1770324668778,-1089.93703614,0.0004,120]
[404599615,1770324668788,-955.54736112,0.0004,2]
[404599616,1770324668798,-200000.0,0.0004,8]
[404599617,1770324668808,-8798.30663154,0.0004,7]
[404599618,1770324668819,-61042.58,0.0004,120]
[404599619,1770324668834,-4788.89154026,0.0004,120]
[404599620,1770324668844,-761.95702117,0.0004,7]
[404599621,1770324668855,-365.82300131,0.0004,30]
[404599622,1770324668865,-163.52547963,0.0004,120]
[404599623,1770324668875,-160.0,0.0004,3]
[404599624,1770324668885,-554.41,0.0004,120]
[404599625,1770324668895,-213.26,0.0004,120]
[404599626,1770324668905,-347.3,0.0004,120]
[404599627,1770324668915,-658.21,0.0004,120]
[404599628,1770324668925,-160.0,0.0004,30]
[404599629,1770324668934,-253.0,0.0004,30]
[404599630,1770324668944,-160.0,0.0004,30]
[404599631,1770324668955,-160.0,0.0004,3]
[404599632,1770324668965,-150.0,0.00040009,7]
[404599633,1770324668975,-150.0,0.00040009,7]
[404599634,1770324668986,-150.0,0.00040017,7]
[404599635,1770324668996,-150.0,0.00040026,7]
[404599636,1770324669007,-150.0,0.00040031,7]
[404599637,1770324669017,-900.0,0.00040046,14]
[404599638,1770324669027,-150.0,0.00040059,7]
[404599639,1770324669038,-150.0,0.00040059,7]
[404599640,1770324669048,-150.0,0.00040059,7]
[404599641,1770324669059,-393.16577,0.00040088,30]
[404599642,1770324669069,-150.0,0.00040095,7]
[404599643,1770324669086,-163.84,0.000401,30]
[404599644,1770324669097,-150.0,0.00040101,7]
[404599645,1770324669108,-150.0,0.00040103,7]
[404599646,1770324669120,-150.0,0.00040105,7]
[404599647,1770324669132,-150.0,0.00040109,7]
[404599648,1770324669143,-150.0,0.00040109,7]
[404599649,1770324669153,-1372.04,0.00040111,120]
[404599650,1770324669165,-150.0,0.00040116,7]
[404599651,1770324669175,-500.0,0.00040137,30]
[404599652,1770324669187,-500.0,0.00040137,30]
[404599653,1770324669198,-150.0,0.0004015,7]
[404599654,1770324669209,-150.0,0.00040156,7]
[404599655,1770324669220,-150.0,0.00040159,7]
[404599656,1770324669231,-150.0,0.0004018,7]
[404599657,1770324669241,-150.0,0.00040185,7]
[404599658,1770324669251,-150.0,0.00040208,7]
[404599659,1770324669261,-150.0,0.00040208,7]
[404599660,1770324669270,-150.0,0.00040222,7]
[404599661,1770324669280,-150.0,0.00040242,7]
[404599662,1770324669290,-150.0,0.00040242,7]
[404599663,1770324669300,-150.0,0.00040242,7]
[404599664,1770324669310,-150.0,0.00040254,7]
[404599665,1770324669320,-150.0,0.00040258,7]
[404599666,1770324669338,-150.0,0.00040267,7]
[404599667,1770324669348,-150.0,0.0004027,7]
[404599668,1770324669359,-151.0,0.00040274,120]
[404599669,1770324669370,-151.0,0.00040274,120]
[404599670,1770324669380,-151.0,0.00040274,120]
[404599671,1770324669390,-151.0,0.00040274,120]
[404599672,1770324669400,-243.257104,0.00040274,120]
[404599673,1770324669410,-150.0,0.00040285,7]
[404599674,1770324669420,-393.16577,0.00040288,30]
[404599675,1770324669430,-150.0,0.00040308,7]
[404599676,1770324669440,-150.0,0.00040308,7]
[404599677,1770324669450,-150.0,0.00040328,7]
[404599678,1770324669460,-150.0,0.00040333,7]
[404599679,1770324669470,-150.0,0.00040341,7]
[404599680,1770324669479,-150.0,0.00040354,7]
[404599681,1770324669490,-150.0,0.00040358,7]
[404599682,1770324669500,-150.0,0.00040388,7]
[404599683,1770324669510,-150.0,0.00040388,7]
[404599684,1770324669519,-390.32,0.000404,14]
[404599685,1770324669531,-150.0,0.00040403,7]
[404599686,1770324669540,-150.0,0.00040408,7]
[404599687,1770324669550,-150.0,0.00040408,7]
[404599688,1770324669560,-500.0,0.00040411,30]
[404599689,1770324669570,-500.0,0.00040411,30]
[404599690,1770324669588,-150.0,0.00040414,7]
[404599691,1770324669598,-150.0,0.00040418,7]
[404599692,1770324669608,-150.0,0.00040425,7]
[404599693,1770324669619,-150.0,0.00040439,7]
[404599694,1770324669631,-150.0,0.00040458,7]
[404599695,1770324669640,-150.0,0.00040459,7]
[404599696,1770324669650,-150.0,0.00040477,7]
[404599697,1770324669659,-393.16577,0.00040488,30]
[404599698,1770324669668,-258.71961984,0.000405,120]
[404599699,1770324669677,-250.0,0.000405,45]
[404599700,1770324669687,-250.0,0.000405,45]
[404599701,1770324669697,-250.0,0.000405,45]
[404599702,1770324669706,-250.0,0.000405,45]
[404599703,1770324669716,-250.0,0.000405,45]
[404599704,1770324669730,-2008.0,0.000405,120]
[404599705,1770324669740,-150.0,0.00040508,7]
[404599706,1770324669750,-150.0,0.00040508,7]
[404599707,1770324669759,-150.0,0.00040516,7]
[404599708,1770324669771,-150.0,0.00040523,7]
[404599709,1770324669782,-150.0,0.00040543,7]
[404599710,1770324669792,-556.36539957,0.0004055,2]
[404599711,1770324669804,-150.0,0.00040552,7]
[404599712,1770324669814,-150.0,0.00040558,7]
[404599713,1770324669824,-150.0,0.0004057,7]
[404599714,1770324669843,-150.0,0.00040578,7]
[404599715,1770324669852,-800.0,0.00040594,14]
[404599716,1770324669862,-153.0,0.000406,120]
[404599717,1770324669873,-150.0,0.00040607,7]
[404599718,1770324669883,-150.0,0.00040607,7]
[404599719,1770324669892,-150.0,0.00040607,7]
[404599720,1770324669902,-150.0,0.00040607,7]
[404599721,1770324669916,-150.0,0.00040607,7]
[404599722,1770324669926,-150.0,0.00040607,7]
[404599723,1770324669936,-150.0,0.00040626,7]
[404599724,1770324669946,-150.0,0.00040657,7]
[404599725,1770324669955,-150.0,0.00040672,7]
[404599726,1770324669965,-150.0,0.00040681,7]
[404599727,1770324669975,-500.0,0.00040685,30]
[404599728,1770324669984,-500.0,0.00040685,30]
[404599729,1770324669993,-393.16577,0.00040688,30]
[404599730,1770324670003,-150.0,0.00040692,7]
[404599731,1770324670013,-150.0,0.00040696,7]
[404599732,1770324670022,-150.0,0.00040699,7]
[404599733,1770324670032,-150.0,0.00040701,7]
[404599734,1770324670042,-150.0,0.00040707,7]
[404599735,1770324670051,-150.0,0.00040707,7]
[404599736,1770324670061,-150.0,0.00040721,7]
[404599737,1770324670071,-500.0,0.00040724,2]
[404599738,1770324670085,-150.0,0.00040757,7]
[404599739,1770324670094,-150.0,0.00040775,7]
[404599740,1770324670103,-150.0,0.00040776,7]
[404599741,1770324670113,-150.0,0.0004079,7]
[404599742,1770324670122,-1791.14088764,0.000408,120]
[404599743,1770324670131,-153.0,0.000408,120]
[404599744,1770324670141,-166.80890533,0.000408,60]
[404599745,1770324670150,-150.0,0.00040801,7]
[404599746,1770324670159,-150.0,0.00040807,7]
[404599747,1770324670170,-150.0,0.00040807,7]
[404599748,1770324670179,-150.0,0.00040815,7]
[404599749,1770324670307,-150.0,0.00040849,7]
[404599750,1770324670317,-150.0,0.00040857,7]
[404599751,1770324670330,-150.0,0.00040861,7]
[404599752,1770324670344,-500.0,0.00040868,14]
[404599753,1770324670354,-150.0,0.00040872,7]
[404599754,1770324670363,-150.0,0.00040882,7]
[404599755,1770324670372,-393.16577,0.00040888,30]
[404599756,1770324670382,-506.0,0.00040899,23]
[404599757,1770324670391,-150.0,0.00040907,7]
[404599758,1770324670401,-150.0,0.00040907,7]
[404599759,1770324670411,-150.0,0.00040924,7]
[404599760,1770324670421,-150.0,0.0004093,7]
[404599761,1770324670431,-150.0,0.00040934,7]
[404599762,1770324670440,-150.0,0.00040945,7]
[404599763,1770324670450,-150.0,0.00040957,7]
[404599764,1770324670459,-500.0,0.00040959,30]
[404599765,1770324670469,-500.0,0.00040959,30]
[404599766,1770324670479,-150.0,0.00040973,7]
[404599767,1770324670489,-150.0,0.00040973,7]
[404599768,1770324670498,-150.0,0.00040973,7]
[404599769,1770324670508,-150.0,0.00040973,7]
[404599770,1770324670517,-150.0,0.00040973,7]
[404599771,1770324670527,-150.0,0.00040998,7]
[404599772,1770324670537,-50000.0,0.00041,40]
[404599773,1770324670547,-986.69938945,0.00041,2]
[404599774,1770324670556,-300.01972448,0.00041,120]
[404599775,1770324670566,-499.0,0.00041,120]
[404599776,1770324670576,-1159.0,0.00041,120]
[404599777,1770324670592,-524.08849142,0.00041,30]
[404599778,1770324670602,-9986.0,0.00041,120]
[404599779,1770324670611,-320.0,0.00041,120]
[404599780,1770324670621,-280.51,0.00041,3]
[404599781,1770324670630,-250.0,0.00041,45]
[404599782,1770324670639,-250.0,0.00041,45]
[404599783,1770324670655,-250.0,0.00041,45]
[404599784,1770324670664,-250.0,0.00041,45]
[404599785,1770324670674,-250.0,0.00041,45]
[404599786,1770324670684,-159.99067288,0.00041,120]
[404599787,1770324670693,-157.31191634,0.00041,120]
[404599788,1770324670702,-210.21149826,0.00041,35]
[404599789,1770324670711,-9907.0,0.00041,120]
[404599790,1770324670721,-10000.0,0.00041,120]
[404599791,1770324670732,-1185.0,0.00041,90]
[404599792,1770324670741,-9908.0,0.00041,120]
[404599793,1770324670752,-9908.0,0.00041,120]
[404599794,1770324670761,-9907.0,0.00041,120]
[404599795,1770324670772,-9908.0,0.00041,120]
[404599796,1770324670781,-9908.0,0.00041,120]
[404599797,1770324670790,-9908.0,0.00041,120]
[404599798,1770324670799,-150.3254791,0.00041,5]
[404599799,1770324670809,-270.0,0.00041,2]
[404599800,1770324670818,-390.32,0.00041,14]
[404599801,1770324670832,-262.451678,0.00041,34]
[404599802,1770324670842,-900.0,0.00041,2]
[404599803,1770324670853,-150.0,0.00041007,7]
[404599804,1770324670863,-150.0,0.00041007,7]
[404599805,1770324670872,-150.0,0.00041024,7]
[404599806,1770324670881,-150.0,0.0004103,7]
[404599807,1770324670891,-150.0,0.00041052,7]
[404599808,1770324670900,-150.0,0.00041056,7]
[404599809,1770324670909,-118695.20016139,0.00041059,2]
[404599810,1770324670919,-150.0,0.00041059,7]
[404599811,1770324670927,-150.0,0.00041065,7]
[404599812,1770324670937,-300.0,0.00041068,22]
[404599813,1770324670947,-150.0,0.00041073,7]
[404599814,1770324670956,-180.0,0.00041079,90]
[404599815,1770324670966,-393.16577,0.00041088,30]
[404599816,1770324670975,-197.77722676,0.00041095,120]
[404599817,1770324670984,-891.0,0.00041095,120]
[404599818,1770324670993,-1169.14778439,0.00041095,120]
[404599819,1770324671003,-968.48311065,0.00041096,31]
[404599820,1770324671013,-500.0,0.00041096,120]
[404599821,1770324671023,-800.0,0.00041096,120]
[404599822,1770324671033,-500.0,0.00041096,60]
[404599823,1770324671042,-680.0,0.00041096,60]
[404599824,1770324671052,-2004.53716037,0.00041096,10]
[404599825,1770324671061,-246.81,0.00041096,120]
[404599826,1770324671071,-6252.66,0.00041096,120]
[404599827,1770324671085,-490.0,0.00041096,30]
[404599828,1770324671095,-340.0,0.00041096,120]
[404599829,1770324671104,-1600.0,0.00041096,120]
[404599830,1770324671114,-836.0,0.00041096,120]
[404599831,1770324671124,-805.0,0.00041096,120]
[404599832,1770324671134,-168.89284628,0.00041096,120]
[404599833,1770324671143,-584.2736938,0.00041096,31]
[404599834,1770324671160,-300.0,0.00041096,31]
[404599835,1770324671178,-150.0,0.00041096,2]
[404599836,1770324671197,-390.32,0.000411,14]
[404599837,1770324671215,-150.0,0.00041106,30]
[404599838,1770324671229,-150.0,0.00041106,30]
[404599839,1770324671248,-150.0,0.00041114,30]
[404599840,1770324671267,-150.0,0.00041147,30]
[404599841,1770324671287,-154.90998581,0.00041151,2]
[404599842,1770324671305,-150.0,0.00041156,30]
[404599843,1770324671322,-150.0,0.00041156,30]
[404599844,1770324671348,-150.0,0.00041156,30]
[404599845,1770324671362,-150.0,0.00041171,30]
[404599846,1770324671381,-150.0,0.00041175,30]
[404599847,1770324671395,-151.8,0.00041181,120]
[404599848,1770324671411,-150.0,0.00041189,30]
[404599849,1770324671426,-150.0,0.00041198,30]
[404599850,1770324671440,-288.50598133,0.000412,30]
[404599851,1770324671456,-160.0,0.000412,120]
[404599852,1770324671471,-160.0,0.000412,30]
[404599853,1770324671489,-160.0,0.000412,30]
[404599854,1770324671504,-150.0,0.00041206,30]
[404599855,1770324671519,-150.0,0.00041206,30]
[404599856,1770324671535,-150.0,0.00041221,30]
[404599857,1770324671550,-2208.92113038,0.0004123,5]
[404599858,1770324671565,-500.0,0.00041233,30]
[404599859,1770324671583,-890.49,0.00041233,30]
[404599860,1770324671599,-150.0,0.00041248,30]
[404599861,1770324671614,-150.0,0.00041256,30]
[404599862,1770324671629,-150.0,0.00041266,30]
[404599863,1770324671645,-150.0,0.00041266,30]
[404599864,1770324671659,-151.8,0.00041281,120]
[404599865,1770324671674,-150.0,0.00041283,30]
[404599866,1770324671690,-393.16577,0.00041288,30]
[404599867,1770324671705,-150.0,0.0004129,30]
[404599868,1770324671720,-150.0,0.00041296,30]
[404599869,1770324671736,-153.0,0.000413,120]
[404599870,1770324671752,-150.0,0.00041306,30]
[404599871,1770324671767,-150.0,0.00041306,30]
[404599872,1770324671782,-150.0,0.00041318,30]
[404599873,1770324671797,-150.0,0.00041327,30]
[404599874,1770324671812,-150.0,0.00041339,30]
[404599875,1770324671828,-150.0,0.00041339,30]
[404599876,1770324671845,-150.0,0.00041356,30]
[404599877,1770324671860,-150.0,0.00041367,30]
[404599878,1770324671875,-800.0,0.0004137,120]
[404599879,1770324671890,-150.0,0.0004137,30]
[404599880,1770324671906,-151.8,0.00041381,120]
[404599881,1770324671921,-200.0,0.000414,120]
[404599882,1770324671936,-150.0,0.00041406,30]
[404599883,1770324671951,-150.0,0.00041406,30]
[404599884,1770324671967,-150.0,0.00041408,30]
[404599885,1770324671982,-1040.62570976,0.00041414,120]
[404599886,1770324671999,-180.0,0.00041425,90]
[404599887,1770324672015,-150.0,0.00041431,30]
[404599888,1770324672027,-150.0,0.00041445,30]
[404599889,1770324672036,-150.0,0.00041447,30]
[404599890,1770324672045,-150.0,0.00041452,30]
[404599891,1770324672055,-150.0,0.00041456,30]
[404599892,1770324672065,-190.78349059,0.0004147,120]
[404599893,1770324672074,-150.0,0.00041478,30]
[404599894,1770324672088,-151.8,0.00041481,120]
[404599895,1770324672098,-393.16577,0.00041488,30]
[404599896,1770324672107,-250.0,0.000415,45]
[404599897,1770324672117,-250.0,0.000415,45]
[404599898,1770324672126,-250.0,0.000415,45]
[404599899,1770324672135,-250.0,0.000415,45]
[404599900,1770324672145,-150.0,0.00041505,30]
[404599901,1770324672155,-150.0,0.00041505,30]
[404599902,1770324672164,-500.0,0.00041507,30]
[404599903,1770324672173,-150.0,0.00041519,30]
[404599904,1770324672183,-150.0,0.00041522,30]
[404599905,1770324672192,-150.0,0.00041527,30]
[404599906,1770324672201,-150.0,0.00041536,30]
[404599907,1770324672211,-150.0,0.00041555,30]
[404599908,1770324672221,-150.0,0.00041559,30]
[404599909,1770324672230,-150.0,0.00041576,30]
[404599910,1770324672239,-151.8,0.00041581,120]
[404599911,1770324672249,-150.0,0.00041593,30]
[404599912,1770324672259,-200.0,0.00041604,120]
[404599913,1770324672268,-150.0,0.00041605,30]
[404599914,1770324672278,-150.0,0.00041605,30]
[404599915,1770324672579,-150.0,0.00041614,30]
[404599916,1770324672627,-150.0,0.00041621,30]
[404599917,1770324672646,-150.0,0.00041629,30]
[404599918,1770324672665,-800.0,0.00041644,120]
[404599919,1770324672675,-150.0,0.00041646,30]
[404599920,1770324672685,-150.0,0.00041655,30]
[404599921,1770324672694,-150.0,0.00041668,30]
[404599922,1770324672704,-151.80944653,0.00041681,120]
[404599923,1770324672713,-393.16577,0.00041688,30]
[404599924,1770324672723,-900.0,0.0004169,60]
[404599925,1770324672733,-153.0,0.000417,120]
[404599926,1770324672743,-10357.0,0.000417,117]
[404599927,1770324672753,-150.0,0.00041705,30]
[404599928,1770324672763,-150.0,0.00041705,30]
[404599929,1770324672775,-150.0,0.00041705,30]
[404599930,1770324672785,-150.0,0.00041705,30]
[404599931,1770324672795,-150.0,0.00041705,30]
[404599932,1770324672804,-150.0,0.00041705,30]
[404599933,1770324672814,-150.0,0.00041705,30]
[404599934,1770324672823,-150.0,0.00041705,30]
[404599935,1770324672838,-150.0,0.00041705,30]
[404599936,1770324672848,-150.0,0.00041705,30]
[404599937,1770324672857,-150.0,0.00041742,30]
[404599938,1770324672867,-150.0,0.00041755,30]
[404599939,1770324672876,-150.0,0.00041764,30]
[404599940,1770324672886,-150.0,0.00041781,30]
[404599941,1770324672896,-150.0,0.00041789,30]
[404599942,1770324672905,-150.0,0.00041796,30]
[404599943,1770324672914,-824.0,0.000418,120]
[404599944,1770324672924,-150.0,0.00041805,30]
[404599945,1770324672934,-150.0,0.00041805,30]
[404599946,1770324672943,-150.0,0.00041817,30]
[404599947,1770324672952,-152.0,0.00041829,8]
[404599948,1770324672962,-150.0,0.00041834,30]
[404599949,1770324672971,-150.0,0.00041851,30]
[404599950,1770324672981,-506.0,0.00041852,24]
[404599951,1770324672991,-150.0,0.00041855,30]